Cogmind - Beta 16 @@@ ROGUE MODE // 2025.10.22 @ 23:25:59 Player: Kappa Result: Destroyed by D-53 Grenadier with Mini Grenade Launcher Performance ------------- Evolutions (1) 500 Regions Visited (3) 600 Robots Destroyed (33) 165 Value Destroyed (792) 792 Prototype IDs (0) 0 Alien Tech Used (0) 0 Bonus (0) 0 TOTAL SCORE: 2057 Bonus ------- None Cogmind --------- Core Integrity 0/400 Matter 300/300 Energy 99/100 System Corruption 0% Temperature Cool (0) Movement Core (100) Ox1 Location -9/Mines Parts ------- > --- POWER (1) -------- (None) > --- PROPULSION (2) --- (None) > --- UTILITY (4) ------ Small Storage Unit Visual Processing Unit Targeting Computer > --- WEAPON (2) ------- (None) > --- INVENTORY (8) ---- Improved Ion Engine Improved Treads Improved Treads Signal Interpreter Improved Light Cannon Improved Light Cannon Rocket Launcher Mining Claw Peak State ------------ > --- POWER ------------ Improved Ion Engine > --- PROPULSION ------- Improved Treads Improved Treads > --- UTILITY ---------- Small Storage Unit Visual Processing Unit Targeting Computer ECM Suite > --- WEAPON ----------- Flak Cannon Flak Cannon > --- INVENTORY -------- Improved Ion Engine Improved Ion Engine Improved Treads Improved Treads Signal Interpreter Improved Light Cannon Improved Light Cannon Mining Claw [Rating: 18] Favorites ----------- Power Ion Engine Engine Ion Engine Propulsion Improved Treads Treads Improved Treads Leg Aluminum Leg Utility Small Storage Unit Device ECM Suite Storage Small Storage Unit Processor Targeting Computer Weapon Improved Light Cannon Energy Gun EM Pulse Gun Ballistic Gun Light Assault Rifle Ballistic Cannon Improved Light Cannon Launcher Grenade Launcher Slashing Weapon Mining Claw Build | -11 -10 -9 -9 ------- Run | Yrd Mat Mat Min Slots Evolved 2 | . . 2 . Power . | . . . . Propulsion . | . . . . Utility 2 | . . 2 . Weapon . | . . . . Parts Attached 29 | 7 13 9 . Power 4 | 1 1 2 . Engine 4 | 1 1 2 . Core . | . . . . Reactor . | . . . . Propulsion 9 | 2 5 2 . Treads 4 | . 2 2 . Leg 5 | 2 3 . . Wheel . | . . . . Hover . | . . . . Flight . | . . . . Utility 5 | 2 1 2 . Device 2 | 1 . 1 . Storage 1 | 1 . . . Processor 2 | . 1 1 . Hackware . | . . . . Protection . | . . . . Artifact . | . . . . Weapon 11 | 2 6 3 . Energy Gun 2 | 1 1 . . Energy Cannon . | . . . . Ballistic Gun 1 | 1 . . . Ballistic Cannon 6 | . 4 2 . Launcher 1 | . . 1 . Special Weapon . | . . . . Impact Weapon . | . . . . Slashing Weapon 1 | . 1 . . Piercing Weapon . | . . . . Special Melee Weapon . | . . . . Unidentified Prototypes . | . . . . Parts Lost 7 | . 1 . 6 Power 1 | . . . 1 Propulsion 2 | . . . 2 Utility 1 | . . . 1 Weapon 3 | . 1 . 2 Highest Loss Streak 6 | . 1 . 6 To Critical Strikes . | . . . . Average Backups 5 | . 4 7 7 Power 1 | . . 1 1 Propulsion 1 | . 1 2 2 Utility . | . 1 1 1 Weapon 2 | . 1 2 3 Tool/Special . | . . . . Unused Backups 5 | . 2 . 3 Power 1 | . . . 1 Propulsion 1 | . 1 . . Utility 2 | . 1 . 1 Weapon 1 | . . . 1 Tool/Special . | . . . . Average Slot Usage (%) 99 | . 99 99 96 Engine 12 | . 14 11 11 Treads 15 | . 7 22 21 Leg 9 | . 19 . . Device 9 | . 7 11 10 Storage 12 | . 13 11 11 Processor 14 | . 7 21 22 Energy Gun 2 | . 6 . . Ballistic Gun 3 | . 6 . . Ballistic Cannon 14 | . 10 16 20 Slashing Weapon 3 | . 4 4 . Peak Build Rating 18 | 7 11 18 18 Average Rating 12 | 5 8 15 17 On Entrance 9 | . 7 11 18 Avg Prop Armor Cover (%) . | . . . . Naked Turns . | . . . . Heaviest Build 26 | 14 19 26 26 Greatest Support 46 | 20 46 46 46 Greatest Overweight (x) 5 | . 5 . 3 Average Overweight (x) . | . . . . Largest Inventory Capacity 8 | 8 8 8 8 Average Capacity 7 | 7 7 8 8 Most Carried 8 | . 8 8 8 Average Carried 5 | . 4 7 7 Final Capacity 8 | 8 8 8 8 Final Carried 8 | . 8 8 8 Class Distribution -------------------- 100% | Mutant Dominant Class ---------------- Mutant | -10/Materials Mutant | -9/Materials Mutant | -9/Mines Resources | -11 -10 -9 -9 ----------- Run | Yrd Mat Mat Min Matter Collected 978 | 273 288 307 110 Remotely . | . . . . Salvage Created 922 | 78 365 444 35 Parts 66 | 8 29 26 3 Haulers Intercepted 1 | . 1 . . Recyclers Shooed 1 | . 1 . . Parts Field Recycled . | . . . . Retrieved Matter . | . . . . Parts Self-Destructed . | . . . . Prevented . | . . . . Parts Restored . | . . . . Kills | -11 -10 -9 -9 ------- Run | Yrd Mat Mat Min Combat Hostiles Destroyed 23 | . 9 10 4 Melee 4 | . . 4 . Guns 7 | . 7 . . Cannons 12 | . 2 6 4 Classes Destroyed 8 | 1 5 2 . Tunneler 4 | 3 1 . . Hauler 1 | . 1 . . Operator 1 | . 1 . . Watcher 4 | . 3 1 . Swarmer 9 | . 5 . 4 Grunt 9 | . 4 5 . Duelist 1 | . . 1 . Sentry 4 | . . 4 . Best Kill Streak 4 | 1 4 3 4 Combat Bots Only 4 | . 3 2 4 Max Kills in Single Turn 2 | 1 2 1 1 Gunslinging 1 | . 1 . . Exploded . | . . . . Melee 1 | . . 1 . Uniques/NPCs Destroyed . | . . . . Combat | -11 -10 -9 -9 -------- Run | Yrd Mat Mat Min Hostile Shots Fired 117 | . 40 42 35 Missed 28 | . 17 4 7 Hits 89 | . 23 38 28 Melee 2 | . . 2 . Projectile 87 | . 23 36 28 AOE 22 | . . . 22 Critical Strikes 1 | . 1 . . Damage Taken 1823 | . 294 566 963 Core 455 | . 39 104 312 Absorbed by Shields . | . . . . Core Remaining (%) 92 | 100 84 . . Volleys Fired 74 | 13 34 22 5 Largest 2 | 2 2 2 2 Hottest 74 | 60 66 74 74 Shots Fired 132 | 26 65 31 10 Gun 78 | 26 52 . . Cannon 53 | . 13 30 10 Launcher 1 | . . 1 . Special . | . . . . Kinetic 93 | 13 40 30 10 Thermal 7 | . 7 . . Explosive 1 | . . 1 . Electromagnetic 31 | 13 18 . . Robot Hit Streak 9 | 8 9 5 4 Robot Miss Streak 6 | 3 4 3 6 Penetration Max . | . . . . Secondary Targets 2 | . 2 . . Max Gunslinging Chain 1 | . 1 . . Shots Hit Robots 93 | 17 39 31 6 Core Hits 48 | 5 18 17 8 Critical Kills . | . . . . Critical Parts Destroyed . | . . . . Critical Strikes . | . . . . Melee Attacks 31 | . 4 27 . Impact . | . . . . Slashing 31 | . 4 27 . Piercing . | . . . . Sneak Attacks 2 | . 1 1 . Combat Hostiles 1 | . . 1 . Follow-up Attacks . | . . . . Damage Inflicted 1583 | 177 605 712 89 Guns 507 | 177 330 . . Cannons 597 | . 145 363 89 Explosions 54 | . 33 21 . Melee 421 | . 93 328 . Ramming 4 | . 4 . . Kinetic 790 | 63 275 363 89 Thermal 78 | . 78 . . Explosive 21 | . . 21 . Electromagnetic 269 | 114 155 . . Impact . | . . . . Slashing 421 | . 93 328 . Piercing . | . . . . Highest Corruption 5 | . 5 . . Average Corruption 4 | . 4 . . Corruption Purged . | . . . . Corruption Blocked . | . . . . Effects 31 | . 31 . . Message Errors 7 | . 7 . . Matter Fused 12 | . 12 . . Heat Flow Errors 2 | . 2 . . Energy Discharges 4 | . 4 . . Parts Rejected 1 | . 1 . . Data Loss (minor) 2 | . 2 . . Data Loss (major) 3 | . 3 . . Overload Shots . | . . . . Overflow Damage 49 | . 43 6 . Projectiles 11 | . 10 1 . Explosions . | . . . . Melee 38 | . 33 5 . Knockbacks 8 | . 2 3 3 Impact . | . . . . Kinetic 7 | . 2 3 2 Secondary 1 | . . . 1 Self-Inflicted Damage 56 | . 56 . . Shots 1 | . 1 . . Rammed . | . . . . Targets Rammed 2 | . 2 . . Kicked 2 | . 2 . . Crushed . | . . . . Highest Temperature 265 | 40 265 24 30 Average Temperature 33 | 16 44 9 15 Received Heat Transfer 339 | . 108 231 . Siege Activations . | . . . . Martial Activations . | . . . . Shielding Activations . | . . . . Robots Disrupted . | . . . . Combat Hostiles . | . . . . Robots Corrupted . | . . . . Combat Hostiles . | . . . . Parts Fried 1 | 1 . . . Impact Corruptions . | . . . . Robots Melted . | . . . . Combat Hostiles . | . . . . Parts Melted . | . . . . Heat Transferred 150 | . 150 . . Parts Sabotaged . | . . . . Parts Stolen . | . . . . Parts Stripped . | . . . . Power Chain Reactions 1 | . 1 . . Alert | -11 -10 -9 -9 ------- Run | Yrd Mat Mat Min Maximum Alert Level . | . . . . Low Security (%) 100 | 100 100 100 100 Level 1 . | . . . . Level 2 . | . . . . Level 3 . | . . . . Level 4 . | . . . . Level 5 . | . . . . High Security . | . . . . Max Security . | . . . . Peak Influence 104 | 5 104 63 80 Initial 9 | . . . 9 Average 20 | . 28 16 12 Influence Increases 736 | 15 330 301 90 Destroy 0b10 Robot/C 460 | . 180 200 80 Destroy 0b10 Robot/NC 50 | 15 30 5 . Destroy Leader 120 | . 38 72 10 Successful Hack 18 | . 18 . . Disable Machine 30 | . 30 . . Destroy Structure 28 | . 4 24 . Lose Combat Pursuer 30 | . 30 . . Influence Decreases 736 | 15 330 277 114 Entered New Map 15 | . . . 15 Time Decay 711 | 15 320 277 99 Lost Part 10 | . 10 . . Squads Dispatched 3 | . 1 2 . Investigation 1 | . . 1 . Extermination . | . . . . Reinforcement 2 | . 1 1 . Assault . | . . . . Garrison . | . . . . Intercept . | . . . . Searches Triggered . | . . . . Construction Impeded . | . . . . Haulers Reinforced . | . . . . Active Scanning Responses . | . . . . Cargo Convoy Interrupts . | . . . . Stealth | -11 -10 -9 -9 --------- Run | Yrd Mat Mat Min Distress Signals 3 | . 1 2 . Communications Jammed . | . . . . Distress Signals . | . . . . Times Spotted 56 | . 20 27 9 Peak Tracking Total 4 | . 4 4 4 Tactical Retreats 9 | . 2 6 1 ECM-based Alert Blocks 8 | . . 7 1 Traps | -11 -10 -9 -9 ------- Run | Yrd Mat Mat Min Traps Triggered 4 | . 3 1 . Indirectly . | . . . . Trap Hack Attempts . | . . . . Triggered . | . . . . Disarmed . | . . . . Reprogrammed . | . . . . Reused . | . . . . Traps Extracted . | . . . . Installed . | . . . . Triggered . | . . . . Machines | -11 -10 -9 -9 ---------- Run | Yrd Mat Mat Min Machines Disabled 2 | . 2 . . Max in Single Turn 1 | . 1 . . Machines Repaired . | . . . . Machines Dismantled . | . . . . Machines Sabotaged . | . . . . Overloaded Fab Kills . | . . . . Hacking | -11 -10 -9 -9 --------- Run | Yrd Mat Mat Min Machines Accessed 7 | . 6 1 . Terminals 7 | . 6 1 . Fabricators . | . . . . Repair Stations . | . . . . Recycling Units . | . . . . Scanalyzers . | . . . . Garrison Access . | . . . . Total Hacks 16 | . 15 1 . Successful 5 | . 4 1 . Failed 11 | . 11 . . Catastrophic 2 | . 2 . . Database Lockouts . | . . . . Manual 10 | . 9 1 . Terminals 16 | . 15 1 . Fabricators . | . . . . Repair Stations . | . . . . Recycling Units . | . . . . Scanalyzers . | . . . . Garrison Access . | . . . . Terminal Hacks 5 | . 4 1 . Record 1 | . 1 . . Recall Investigation 1 | . . 1 . Zone Layout 3 | . 3 . . Fabricator Hacks . | . . . . Repair Station Hacks . | . . . . Recycling Unit Hacks . | . . . . Scanalyzer . | . . . . Garrison Access Hacks . | . . . . Unauthorized Hacks . | . . . . Terminals . | . . . . Fabricators . | . . . . Repair Stations . | . . . . Recycling Units . | . . . . Scanalyzers . | . . . . Garrison Access . | . . . . Data Cores Recovered . | . . . . Used . | . . . . Hacking Detections 6 | . 5 1 . Full Trace Events . | . . . . Feedback Events . | . . . . Feedback Blocked . | . . . . Robot Schematics Acquired . | . . . . Robots Built . | . . . . Authchips . | . . . . Time . | . . . . Total Robot Build Rating . | . . . . Part Schematics Acquired . | . . . . Parts Built . | . . . . Authchips . | . . . . Time . | . . . . Total Part Build Rating . | . . . . Part Studies Acquired . | . . . . Parts Repaired . | . . . . Time . | . . . . Parts Recycled . | . . . . Recycled Matter . | . . . . Retrieved Matter . | . . . . Retrieved Components . | . . . . Parts Scanalyzed . | . . . . Part Schematics Acquired . | . . . . Parts Damaged . | . . . . Bothacking | -11 -10 -9 -9 ------------ Run | Yrd Mat Mat Min Used RIF Installer . | . . . . Robots Hacked . | . . . . Non-combat . | . . . . Combat . | . . . . Robot Hacks Applied . | . . . . Relay Couplers Released . | . . . . Fabnet Peak Effective % . | . . . . Robots Rewired . | . . . . Allies Hacked . | . . . . Hacks Repelled . | . . . . Allies | -11 -10 -9 -9 -------- Run | Yrd Mat Mat Min Total Allies . | . . . . Largest Group . | . . . . Highest-Rated Group . | . . . . Highest-Rated Ally . | . . . . Total Orders . | . . . . Ally Attacks . | . . . . Total Damage . | . . . . Kills . | . . . . Allies Corrupted . | . . . . Allies Melted . | . . . . Intel | -11 -10 -9 -9 ------- Run | Yrd Mat Mat Min Active Infowar (turns) 2439 | 8 766 1089 576 Optics 1664 | . . 1088 576 Seismic 774 | 8 766 . . ECM 1621 | . . 1089 532 Robot Analysis Total . | . . . . Derelict Logs Recovered 2 | . . . 2 Drone Launches . | . . . . Drone Recoveries . | . . . . Exploration | -11 -10 -9 -9 ------------- Run | Yrd Mat Mat Min Turns Passed 3265 | 150 1450 1089 576 Spaces Moved 1875 | 90 917 518 350 Core 14 | 6 1 . 7 Treads 1102 | . 241 518 343 Legs 759 | 84 675 . . Wheels . | . . . . Hover . | . . . . Flight . | . . . . Fastest Speed 50 | 50 120 160 100 Average Speed 143 | 115 130 160 159 Slowest Speed 300 | 120 300 160 200 Overloaded Moves . | . . . . Propulsion Burnouts . | . . . . Robots Hopped . | . . . . Potential Cave-ins . | . . . . Cave-ins Triggered . | . . . . Exploration Rate (%) 47 | 5 88 35 61 Regions Visited 3 Branch Regions 1 Pre-discovered Areas 1 | . . . 1 Known Exits Taken . | . . . . Unknown Exits Taken 3 | 1 1 1 . Scrap Searched 1 | . . . 1 Spaces Dug 7 | . 1 6 . Terrain Destroyed 25 | . 3 22 . Melee 7 | . 1 6 . Projectile 3 | . . 3 . AOE 15 | . 2 13 . Terrain Rammed . | . . . . Walls Destroyed . | . . . . Machines Disabled . | . . . . Actions | -11 -10 -9 -9 --------- Run | Yrd Mat Mat Min Total 2260 | 109 1103 688 360 Wait 199 | . 100 96 3 Move 1872 | 89 916 517 350 Hop . | . . . . Pick Up 18 | . 12 5 1 Fast Attach 14 | 7 7 . . Attach 4 | . 2 2 . Detach 5 | . 5 . . Swap 23 | . 8 15 . Drop 18 | . 13 4 1 Fire 74 | 13 34 22 5 Melee 31 | . 4 27 . Ram . | . . . . Kick 2 | . 2 . . Crush . | . . . . Escape Stasis . | . . . . Rewire . | . . . . Trap . | . . . . Miscellaneous . | . . . . Route ------- -11/Scrapyard -10/Materials (discovered 4 exits: *Mat x3 / [*Min]) -9/Materials -9/Mines (discovered 1 exit: [*Mat]) History --------- Turn | Location | Event 28 | -11/Scrapyard | Discovered new exit (range 14) 151 | -11/Scrapyard | Entered Materials 309 | -10/Materials | Build established: Mutant 757 | -10/Materials | Discovered new exit (range 13) 1264 | -10/Materials | Discovered new exit (range 14) 1385 | -10/Materials | Discovered new exit (range 8) 1564 | -10/Materials | Discovered new exit (range 16) 1601 | -10/Materials | Entered another Materials area 1601 | -9/Materials | Evolved 2 slots: Utility x2 2591 | -9/Materials | Discovered new exit (range 17) 2690 | -9/Materials | Entered Mines 2803 | -9/Mines | Received a Rocket Launcher from a helpful Derelict 2835 | -9/Mines | Discovered new exit (range 12) 2937 | -9/Mines | Learned location of Zion (-7) 3178 | -9/Mines | Assembled infested the area 3232 | -9/Mines | Core integrity fell below 50% 3262 | -9/Mines | Core integrity fell below 20% 3266 | -9/Mines | Destroyed by D-53 Grenadier with Mini Grenade Launcher Last Messages --------------- 03218_ D-53 Grenadier unfolds itself. 03220_ U-05 Engineer lays Concrete. 03222_ ECM Suite destroyed. 03223_ The unstable cave ceiling collapses. 03223_ U-05 Engineer lays Concrete. 03225_ Flak Cannon destroyed. 03227_ U-05 Engineer lays Concrete. 03227_ Imp. Treads destroyed. 03227_ as-86152 destroyed. 03228_ U-05 Engineer lays Concrete. 03231_ U-05 Engineer builds a Wall. 03231_ Flak Cannon destroyed. 03235_ U-05 Engineer lays Concrete. 03236_ K-01 Serf collects debris. 03236_ U-05 Engineer lays Concrete. 03240_ The unstable cave ceiling collapses. 03259_ Imp. Treads destroyed. 03261_ Imp. Ion Engine destroyed. 03262_ K-01 Serf destroyed. 03262_ T-07 Excavator destroyed. Map ----- +----------------------------------------------------+ | ?????????????????????????????????????????????????? | | ?????????????????????????????????????????????????? | | ?????????????????????????????????????????????????? | | ?????????????????????????????????????????????????? | | ?????????????????????????????????????????????????? | | ?????????????????????????????????????????????????? | | ?????????????????????????????????????????????????? | | ?????????????????????????????????????????????????? | | ?????????????????????????????????????????????????? | | ???????????????????????????##########????????????? | | ???????????????????????????# #????????????? | | ???????????????????????????# """ ######???????? | | ??????????????????????###??# """ < #???????? | | ?????????????????????? #??# """ !#???????? | | ?????????????????????? #?# ####[#???????# | | ?????????????????????? ??# """ #??#%#???????# | | ?????????????????????# ??# """ #??#!#???????# | | ????????????????????## ??# """ #??#!#???????# | | ????????????????????# ???# #??# #???????# | | ????????????????????# ???### #####??# #???????# | | ???????????????????## #?????# #??????# #####???# | | ???????????????????# #?????# #??????# #???? | | ???????????????????# ##????# #??????##### #???? | | ???????????????????# ##???# ##?????????# #???? | | ??????????????????## ##### ##????????# #???? | | ????????????????### =% @ t #????????# #???? | | ???????????????## !== ### #????????# ##### | | ???????????????# ##?# ##???????# | | ???????????????# ##??## ##??????# | | ???????????????## #????## #??????####### | | ???????????????# #?????# #????????????? | | ???????????????# #?????# ##????????????? | | ????????####???# ##?????# ###?????????????? | | ???????## #???####dd ##??????# #???????????????? | | ???????# ##??????# ##???????# #???????????????? | | ??????## ##??????# #????????# #???????????????? | | ????### ######## #????????# #???????????????? | | ??### ## #????????# #???????????????? | | ?## #??????### #???????????????? | | ?# #??????# #???????????????? | | ?# #####??????# ####???????????????? | | ?## ##??????????# #??????????????????? | | ??#### # #???????????# #??????????????????? | | ?????# #??????###### #??????????????????? | | ?????## ####???# #??????????????????? | | ?????# ###?# #####??????????????????? | | ?????## # ## ### #??????????????????????? | | ??????# %" #??????????????????????? | | ??????## #####??????????????????????? | | ?????## #??????????????????????????? | +----------------------------------------------------+ Best States ------------- Heat Dissipation 28 Energy Generation 12 Energy Capacity 265 Matter Stores 300 Matter Capacity 300 Sight Range 18 Terrain Scan Density 10 ECM Strength 1 Evasion (%) 55 Targeting Accuracy 5 Recoil Reduction 2 Item Schematics ----------------- None Robot Schematics ------------------ None Fabricated ------------ Nothing Repaired ---------- Nothing Studied --------- None Alien Tech Used ----------------- None Achievements -------------- Bumper Bots Challenges ------------ None Game ------ Seed ModifiedStorageWarhead Manual? 0 Play Time 00:23:17 Cumulative 25.3 hours Start 2025.10.22 @ 23:04:08 End 2025.10.22 @ 23:25:59 Sessions 1 Manual Loads 0 Difficulty Rogue Special Mode None Game No. 45 Rogue 45 Adventurer 0 Explorer 0 Win Type - Total 0 Types 0/0/0/0/0/0/0/0/0/0 Lore% 10 Gallery% 23 Achievement% 14 Wizard Run 0 Options --------- Layout 0 ASCII 0 Keyboard 1 Movement Numpad Keybinds 0 Fullscreen 2 Font 20/Terminus Map View 96x60 Zoom Use 0% Tactical HUD 1 Map Filters NONE Filters NONE Steam 1 RUN: 9c7e8b7b-e162-402e-a4b8-29d799cec576